fUSD/lending_fUSD_20250213
["ID","MTS","AMOUNT","RATE_DAILY","PERIOD"]
[353017541,1739485985703,-656.34,0.00019178,2]
[353017542,1739485985724,-656.34,0.00019178,2]
[353017543,1739485985742,-656.34,0.00019178,2]
[353017544,1739485985760,-656.34,0.00019178,2]
[353017545,1739485985778,-656.34,0.00019178,2]
[353017546,1739485985793,-656.34,0.00019178,2]
[353017547,1739485985811,-656.4849771,0.00019178,2]
[353017548,1739485985826,-840.91,0.00019178,60]
[353017549,1739485985844,-150.0,0.00019178,2]
[353017550,1739485985860,-394.0,0.00019178,13]
[353017551,1739485985875,-2078.0,0.0001919,2]
[353017552,1739485985890,-200.0,0.000192,2]
[353017553,1739485985906,-500.0,0.00019205,2]
[353017554,1739485985919,-500.0,0.00019205,2]
[353017555,1739485985938,-500.0,0.00019205,2]
[353017556,1739485985956,-500.0,0.00019205,2]
[353017557,1739485985973,-500.0,0.00019205,2]
[353017558,1739485985989,-500.0,0.00019205,2]
[353017559,1739485986005,-500.0,0.00019205,2]
[353017560,1739485986021,-500.0,0.00019205,2]
[353017561,1739485986038,-500.0,0.00019205,2]
[353017562,1739485986057,-500.0,0.00019205,2]
[353017563,1739485986072,-500.0,0.00019205,2]
[353017564,1739485986087,-500.0,0.00019205,2]
[353017565,1739485986103,-500.0,0.00019205,2]
[353017566,1739485986119,-500.0,0.00019205,2]
[353017567,1739485986135,-500.0,0.00019205,2]
[353017568,1739485986150,-500.0,0.00019205,2]
[353017569,1739485986168,-500.0,0.00019205,2]
[353017570,1739485986184,-500.0,0.00019205,2]
[353017571,1739485986200,-500.0,0.00019205,2]
[353017572,1739485986217,-461.0,0.00019205,2]
[353017573,1739485986233,-234.0,0.00019232,3]
[353017574,1739485986250,-638.79,0.00019242,30]
[353017575,1739485986265,-263.03543,0.00019288,7]
[353017576,1739485986280,-2156.0,0.00019329,7]
[353017577,1739485986296,-2156.0,0.00019329,7]
[353017578,1739485986312,-2078.0,0.0001938,2]
[353017579,1739485986328,-523059.98876428,0.000194,2]
[353017580,1739485986342,-2000.0,0.0001942,2]
[353017581,1739485986357,-3206.23000099,0.00019445,2]
[353017582,1739485986372,-2265.71,0.00019452,3]
[353017583,1739485986387,-263.03543,0.00019488,7]
[353017584,1739485986403,-953.1956927,0.000195,2]
[353017585,1739485986419,-2078.0,0.0001957,2]
[353017586,1739485986436,-1109.0,0.00019574,2]
[353017587,1739485986450,-1273.0,0.00019574,2]
[353017588,1739485986465,-2025.0,0.00019574,2]
[353017589,1739485986479,-3915.0,0.00019574,2]
[353017590,1739485986494,-150.0,0.00019574,2]
[353017591,1739485986510,-2156.0,0.00019603,7]
[353017592,1739485986526,-2156.0,0.00019603,7]
[353017593,1739485986542,-150.0,0.00019683,2]
[353017594,1739485986558,-100000.0,0.000197,6]
[353017595,1739485986573,-5697.39,0.000197,2]
[353017596,1739485986588,-3000.0,0.000197,2]
[353017597,1739485986602,-150.0,0.00019706,2]
[353017598,1739485986617,-150.0,0.0001971,2]
[353017599,1739485986633,-2265.71,0.00019726,3]
[353017600,1739485986648,-5003.55926,0.0001976,30]
[353017601,1739485986664,-172.47,0.000198,2]
[353017602,1739485986679,-150.0,0.00019864,2]
[353017603,1739485986693,-2156.0,0.00019877,7]
[353017604,1739485986708,-2156.0,0.00019877,7]
[353017605,1739485986723,-213702.7323325,0.0001988,2]
[353017606,1739485986738,-166495.66474357,0.0001988,2]
[353017607,1739485986755,-263.03543,0.00019888,7]
[353017608,1739485986770,-200657.33226094,0.000199,2]
[353017609,1739485986786,-131047.96025655,0.000199,7]
[353017610,1739485986801,-1500.0,0.000199,60]
[353017611,1739485986816,-152.0,0.00019922,11]
[353017612,1739485986831,-234.0,0.00019924,3]
[353017613,1739485986848,-450.0,0.00019991,4]
[353017614,1739485986863,-413431.21426325,0.00019992,2]
[353017615,1739485986879,-1600.0,0.00019999,10]
[353017616,1739485986894,-61112.43216832,0.00019999,5]
[353017617,1739485986909,-19604.12,0.0002,5]
[353017618,1739485986924,-83227.26390584,0.0002,2]
[353017619,1739485986939,-461.8252192,0.0002,10]
[353017620,1739485986954,-900.0,0.0002,21]
[353017621,1739485986969,-11418.46786564,0.0002,20]
[353017622,1739485986984,-5000.0,0.0002,30]
[353017623,1739485986998,-5000.0,0.0002,15]
[353017624,1739485987013,-5000.0,0.0002,15]
[353017625,1739485987028,-4401.0,0.0002,15]
[353017626,1739485987043,-1500.0,0.0002,2]
[353017627,1739485987060,-2110.0,0.0002,2]
[353017628,1739485987075,-5000.03541667,0.0002,30]
[353017629,1739485987091,-198801.74407584,0.0002,2]
[353017630,1739485987105,-13556.25285647,0.0002,2]
[353017631,1739485987120,-22562.07187586,0.0002,2]
[353017632,1739485987137,-50008.65493929,0.0002,2]
[353017633,1739485987152,-153.16239309,0.0002,2]
[353017634,1739485987166,-27692.42635698,0.0002,30]
[353017635,1739485987181,-2000.0,0.0002,2]
[353017636,1739485987196,-102262.72571962,0.0002,4]
[353017637,1739485987211,-109756.91155816,0.0002,4]
[353017638,1739485987228,-69417.70263591,0.0002,4]
[353017639,1739485987243,-50000.0,0.0002,2]
[353017640,1739485987258,-2000.0,0.0002,2]
[353017641,1739485987272,-9767.18543584,0.0002,14]
[353017642,1739485987288,-2000.1532,0.0002,2]
[353017643,1739485987302,-2000.0,0.0002,2]
[353017644,1739485987317,-2000.0,0.0002,2]
[353017645,1739485987332,-10000.0,0.0002,2]
[353017646,1739485987346,-2265.71,0.0002,3]
[353017647,1739485987362,-159.0,0.0002,2]
[353017648,1739485987376,-35849.71198299,0.0002,2]
[353017649,1739485987390,-151.0,0.0002,2]
[353017650,1739485987405,-241.5723982,0.0002,2]
[353017651,1739485987419,-150.81,0.0002,2]
[353017652,1739485987435,-150.81,0.0002,2]
[353017653,1739485987449,-150.81,0.0002,2]
[353017654,1739485987463,-150.81,0.0002,2]
[353017655,1739485987478,-150.81,0.0002,2]
[353017656,1739485987492,-150.81,0.0002,2]
[353017657,1739485987506,-150.81,0.0002,2]
[353017658,1739485987520,-150.81,0.0002,2]
[353017659,1739485987535,-150.81,0.0002,2]
[353017660,1739485987548,-150.81,0.0002,2]
[353017661,1739485987563,-150.81,0.0002,2]
[353017662,1739485987578,-150.81,0.0002,2]
[353017663,1739485987593,-150.81,0.0002,2]
[353017664,1739485987608,-150.81,0.0002,2]
[353017665,1739485987623,-150.81,0.0002,2]
[353017666,1739485987638,-150.81,0.0002,2]
[353017667,1739485987653,-150.81,0.0002,2]
[353017668,1739485987668,-150.81,0.0002,2]
[353017669,1739485987683,-150.81,0.0002,2]
[353017670,1739485987698,-150.81,0.0002,2]
[353017671,1739485987713,-150.81,0.0002,2]
[353017672,1739485987728,-150.81,0.0002,2]
[353017673,1739485987743,-150.81,0.0002,2]
[353017674,1739485987757,-150.81,0.0002,2]
[353017675,1739485987772,-150.81,0.0002,2]
[353017676,1739485987786,-150.81,0.0002,2]
[353017677,1739485987801,-150.81,0.0002,2]
[353017678,1739485987815,-150.81,0.0002,2]
[353017679,1739485987831,-150.81,0.0002,2]
[353017680,1739485987846,-150.81,0.0002,2]
[353017681,1739485987860,-150.81,0.0002,2]
[353017682,1739485987875,-150.81,0.0002,2]
[353017683,1739485987889,-150.81,0.0002,2]
[353017684,1739485987903,-150.81,0.0002,2]
[353017685,1739485987918,-150.81,0.0002,2]
[353017686,1739485987932,-150.81,0.0002,2]
[353017687,1739485987947,-150.81,0.0002,2]
[353017688,1739485987962,-150.81,0.0002,2]
[353017689,1739485988310,-150.81,0.0002,2]
[353017690,1739485988319,-150.81,0.0002,2]
[353017691,1739485988329,-150.81,0.0002,2]
[353017692,1739485988339,-150.81,0.0002,2]
[353017693,1739485988349,-150.81,0.0002,2]
[353017694,1739485988358,-150.81,0.0002,2]
[353017695,1739485988367,-150.81,0.0002,2]
[353017696,1739485988377,-150.81,0.0002,2]
[353017697,1739485988386,-150.81,0.0002,2]
[353017698,1739485988395,-150.81,0.0002,2]
[353017699,1739485988406,-150.81,0.0002,2]
[353017700,1739485988417,-150.81,0.0002,2]
[353017701,1739485988427,-150.81,0.0002,2]
[353017702,1739485988439,-150.81,0.0002,2]
[353017703,1739485988451,-150.81,0.0002,2]
[353017704,1739485988460,-150.81,0.0002,2]
[353017705,1739485988470,-150.81,0.0002,2]
[353017706,1739485988479,-150.81,0.0002,2]
[353017707,1739485988492,-150.81,0.0002,2]
[353017708,1739485988504,-150.81,0.0002,2]
[353017709,1739485988517,-150.81,0.0002,2]
[353017710,1739485988527,-150.81,0.0002,2]
[353017711,1739485988537,-150.81,0.0002,2]
[353017712,1739485988547,-150.81,0.0002,2]
[353017713,1739485988557,-150.81,0.0002,2]
[353017714,1739485988566,-150.81,0.0002,2]
[353017715,1739485988575,-150.81,0.0002,2]
[353017716,1739485988584,-150.81,0.0002,2]
[353017717,1739485988594,-150.81,0.0002,2]
[353017718,1739485988604,-150.81,0.0002,2]
[353017719,1739485988614,-150.81,0.0002,2]
[353017720,1739485988623,-150.81,0.0002,2]
[353017721,1739485988633,-150.81,0.0002,2]
[353017722,1739485988643,-150.81,0.0002,2]
[353017723,1739485988652,-150.81,0.0002,2]
[353017724,1739485988661,-150.81,0.0002,2]
[353017725,1739485988670,-150.81,0.0002,2]
[353017726,1739485988680,-150.81,0.0002,2]
[353017727,1739485988690,-150.81,0.0002,2]
[353017728,1739485988699,-150.81,0.0002,2]
[353017729,1739485988708,-150.81,0.0002,2]
[353017730,1739485988719,-150.81,0.0002,2]
[353017731,1739485988728,-150.81,0.0002,2]
[353017732,1739485988737,-150.81,0.0002,2]
[353017733,1739485988747,-150.81,0.0002,2]
[353017734,1739485988757,-150.81,0.0002,2]
[353017735,1739485988766,-150.81,0.0002,2]
[353017736,1739485988775,-150.81,0.0002,2]
[353017737,1739485988784,-150.81,0.0002,2]
[353017738,1739485988794,-150.81,0.0002,2]
[353017739,1739485988803,-150.81,0.0002,2]
[353017740,1739485988813,-508.788843,0.0002,2]
[353017741,1739485988822,-1500.0,0.0002,5]
[353017742,1739485988831,-150.0,0.0002,5]
[353017743,1739485988841,-2000.0,0.0002001,2]
[353017744,1739485988850,-3977.673064,0.0002002,2]
[353017745,1739485988859,-263.03543,0.00020088,7]
[353017746,1739485988869,-2000.0,0.00020089,2]
[353017747,1739485988878,-465.25609,0.000201,2]
[353017748,1739485988887,-696.01934,0.000201,2]
[353017749,1739485988896,-676.92831,0.000201,2]
[353017750,1739485988906,-65412.5568,0.000201,2]
[353017751,1739485988915,-1500.0,0.00020137,2]
[353017752,1739485988925,-150.0,0.00020144,120]
[353017753,1739485988934,-24000.3,0.00020145,2]
[353017754,1739485988944,-150.0,0.00020187,2]
[353017755,1739485988953,-450.0,0.00020191,4]
[353017756,1739485988963,-2400.07648883,0.000202,7]
[353017757,1739485988972,-271.35,0.00020211,2]
[353017758,1739485988981,-150.0,0.00020243,120]
[353017759,1739485988991,-2265.71,0.00020273,3]
[353017760,1739485989000,-1500.0,0.00020274,2]
[353017761,1739485989009,-263.03543,0.00020288,7]
[353017762,1739485989020,-15780.32,0.000203,5]
[353017763,1739485989030,-1000.0,0.00020301,120]
[353017764,1739485989040,-1000.0,0.00020301,120]
[353017765,1739485989053,-1000.0,0.00020301,120]
[353017766,1739485989063,-640.68354792,0.00020301,120]
[353017767,1739485989072,-150.0,0.00020358,120]
[353017768,1739485989083,-450.0,0.00020391,4]
[353017769,1739485989092,-56902.440412,0.000204,15]
[353017770,1739485989101,-21000.0,0.000204,7]
[353017771,1739485989111,-509257.29869966,0.000204,2]
[353017772,1739485989121,-3868556.53270932,0.000204,2]
[353017773,1739485989131,-114593.81088768,0.000204,2]
[353017774,1739485989140,-1500.0,0.00020411,2]
[353017775,1739485989150,-1029.5460756,0.00020423,2]
[353017776,1739485989159,-1135.19320419,0.00020423,2]
[353017777,1739485989169,-150.0,0.00020445,120]
[353017778,1739485989178,-263.03543,0.00020488,7]
[353017779,1739485989187,-150.0,0.00020489,120]
[353017780,1739485989197,-2556.33,0.000205,30]
[353017781,1739485989207,-40115.0,0.000205,3]
[353017782,1739485989216,-2110.0,0.000205,2]
[353017783,1739485989227,-300.0,0.000205,2]
[353017784,1739485989237,-5697.39,0.000205,2]
[353017785,1739485989246,-2356.66,0.000205,7]
[353017786,1739485989256,-150.0,0.00020529,120]
[353017787,1739485989266,-172.48,0.00020533,2]
[353017788,1739485989275,-2265.71,0.00020547,3]
[353017789,1739485989284,-234.54,0.00020548,2]
[353017790,1739485989294,-177.89,0.00020548,2]
[353017791,1739485989303,-2040.80296233,0.00020548,2]
[353017792,1739485989312,-150.0,0.0002056,2]
[353017793,1739485989322,-150.0,0.00020591,4]
[353017794,1739485989331,-500.0,0.00020592,2]
[353017795,1739485989341,-234.0,0.00020616,3]
[353017796,1739485989351,-150.0,0.00020678,120]
[353017797,1739485989360,-900.0,0.0002068,2]
[353017798,1739485989369,-800.0,0.0002068,2]
[353017799,1739485989379,-263.03543,0.00020688,7]
[353017800,1739485989388,-500.0,0.00020692,2]
[353017801,1739485989398,-150.0,0.00020692,2]
[353017802,1739485989407,-21736.58287945,0.000207,2]
[353017803,1739485989418,-174.39159755,0.000207,120]
[353017804,1739485989427,-152.0,0.000207,12]
[353017805,1739485989436,-222.74981148,0.000207,5]
[353017806,1739485989446,-150.0,0.00020704,120]
[353017807,1739485989455,-150.0,0.00020714,120]
[353017808,1739485989464,-2000.0,0.00020758,2]
[353017809,1739485989475,-2027802.2331196,0.0002076,2]
[353017810,1739485990588,-689.003,0.0001333,2]
[353017811,1739485990600,-510.00939672,0.0001333,2]
[353017812,1739485990611,-1097.67821731,0.0001333,2]
[353017813,1739485990622,-289.07110597,0.0001333,2]
[353017814,1739485990631,-1008.0,0.00013574,2]
[353017815,1739485990641,-1524.88,0.00013698,2]
[353017816,1739485990651,-151.0,0.00013698,2]
[353017817,1739485990660,-151.0,0.00013698,2]
[353017818,1739485990669,-500.0,0.00013698,2]
[353017819,1739485990678,-1524.88,0.0001378,2]
[353017820,1739485990688,-3700.24,0.00013863,2]
[353017821,1739485990697,-1524.88,0.00013863,2]
[353017822,1739485990707,-1524.88,0.00013945,2]
[353017823,1739485990716,-3700.24,0.00013945,2]
[353017824,1739485990726,-1524.88,0.00014027,2]
[353017825,1739485990735,-3700.24,0.00014027,2]
[353017826,1739485990745,-1524.88,0.00014109,2]
[353017827,1739485990754,-1524.88,0.00014191,2]
[353017828,1739485990763,-1524.88,0.00014273,2]
[353017829,1739485990772,-1524.88,0.00014356,2]
[353017830,1739485990782,-500.0,0.00014438,2]
[353017831,1739485990791,-1524.88,0.00014438,2]
[353017832,1739485990800,-4502.56,0.0001452,2]
[353017833,1739485990809,-500.0,0.0001452,2]
[353017834,1739485990819,-2585.76172,0.0001458,2]
[353017835,1739485990828,-4502.56,0.00014602,2]
[353017836,1739485990837,-500.0,0.00014602,2]
[353017837,1739485990846,-500.0,0.00014684,2]
[353017838,1739485990855,-709.99,0.00014684,2]
[353017839,1739485990864,-500.0,0.00014684,2]
[353017840,1739485990873,-4502.56,0.00014684,2]
[353017841,1739485990882,-500.0,0.00014684,2]
[353017842,1739485990891,-500.0,0.00014684,2]
[353017843,1739485990900,-500.0,0.00014684,2]
[353017844,1739485990909,-413.5948089,0.00014684,2]
[353017845,1739485990920,-86.4051911,0.00014684,2]
[353017846,1739485990929,-500.0,0.00014684,2]
[353017847,1739485990938,-33.35501203,0.00014684,2]
[353017848,1739485990949,-466.64498797,0.00014684,2]
[353017849,1739485990958,-500.0,0.00014684,2]
[353017850,1739485990967,-709.99,0.00014767,2]
[353017851,1739485990976,-4502.56,0.00014767,2]
[353017852,1739485990986,-500.0,0.00014767,2]
[353017853,1739485990997,-709.99,0.00014849,2]
[353017854,1739485991008,-4502.56,0.00014849,2]
[353017855,1739485991017,-709.99,0.00014931,2]
[353017856,1739485991027,-4502.56,0.00014931,2]
[353017857,1739485991036,-709.99,0.00015013,2]
[353017858,1739485991049,-4502.56,0.00015013,2]
[353017859,1739485991059,-709.99,0.00015095,2]
[353017860,1739485991070,-4502.56,0.00015095,2]
[353017861,1739485991081,-709.99,0.00015178,2]
[353017862,1739485991092,-4502.56,0.00015178,2]
[353017863,1739485991104,-709.99,0.0001526,2]
[353017864,1739485991114,-4502.56,0.0001526,2]
[353017865,1739485991128,-709.99,0.00015342,2]
[353017866,1739485991137,-598.78,0.00015424,2]
[353017867,1739485991147,-709.99,0.00015424,2]
[353017868,1739485991156,-2962.2,0.00015506,2]
[353017869,1739485991166,-598.78,0.00015506,2]
[353017870,1739485991175,-2962.26450782,0.00015589,2]
[353017871,1739485991184,-598.94104075,0.00015589,2]
[353017872,1739485991193,-257.49071571,0.0001583,2]
[353017873,1739485991205,-2328.27100429,0.0001583,2]
[353017874,1739485991215,-1007.0,0.00016574,2]
[353017875,1739485991225,-2585.76172,0.0001708,2]
[353017876,1739485991235,-1119.65688403,0.0001833,2]
[353017877,1739485991271,-500.0,0.0001378,2]
[353017878,1739485991280,-3700.24,0.00014109,2]
[353017879,1739485991289,-1524.88,0.0001452,2]
[353017880,1739485991299,-709.99,0.00015506,2]
[353017881,1739485991309,-1466.10483597,0.0001833,2]
[353017882,1739485991319,-34176.03965264,0.0002076,2]
[353017883,1739485991331,-10364.754633,0.0002076,2]
[353017884,1739485991349,-1166.01218725,0.00015342,2]
[353017885,1739485991360,-750.18227,0.00015342,2]
[353017886,1739485991372,-2586.36554275,0.00015342,2]
[353017887,1739485991381,-4818.86623985,0.0002076,2]
[353017888,1739486261809,820.47244545,0.0002,120]
[353017889,1739486274959,2045.5056,8.851e-05,2]
[353017890,1739487032015,-181.54,0.00010137,2]
[353017891,1739487032024,-73.35,0.00010311,2]
[353017892,1739487032263,-76.65,0.00010311,2]
[353017893,1739487032273,-200.0,0.00010311,2]
[353017894,1739487032283,-875.2,0.00010486,2]
[353017895,1739487032293,-150.0,0.00010875,2]
[353017896,1739487032302,-150.0,0.00011151,2]
[353017897,1739487032312,-200.0,0.00011151,2]
[353017898,1739487032321,-294.82377419,0.00011383,2]
[353017899,1739487032331,-202.13972077,0.00011435,2]
[353017900,1739487032416,-92.68405341,0.00011435,2]
[353017901,1739487032426,-150.0,0.00011507,2]
[353017902,1739487032443,-2000.0,0.00012171,2]
[353017903,1739487032456,-250.0,0.00012178,2]
[353017904,1739487032466,-646.97,0.00012178,2]
[353017905,1739487032475,-300.0,0.000122,2]
[353017906,1739487032485,-23900.0,0.00012201,2]
[353017907,1739487032494,-283.9,0.00012217,2]
[353017908,1739487032504,-1500.0,0.00012287,2]
[353017909,1739487032513,-889.9,0.0001229,2]
[353017910,1739487032522,-1000.0,0.00012305,2]
[353017911,1739487032531,-804.52,0.0001232,2]
[353017912,1739487032541,-2751.0,0.00012332,2]
[353017913,1739487032550,-1600.0,0.00012358,2]
[353017914,1739487032559,-686.68,0.00012387,2]
[353017915,1739487032569,-153.35,0.0001251,2]
[353017916,1739487032579,-4085.46,0.00012603,2]
[353017917,1739487032588,-875.2,0.0001275,2]
[353017919,1739487032598,-1258.03,0.00013156,2]
[353017921,1739487032607,-1258.03,0.0001316,2]
[353017923,1739487032616,-1258.03,0.00013163,2]
[353017925,1739487032626,-1258.03,0.00013167,2]
[353017927,1739487032635,-1258.03,0.0001317,2]
[353017929,1739487032644,-1258.03,0.00013174,2]
[353017930,1739487032653,-1258.03,0.00013177,2]
[353017932,1739487032663,-1258.03,0.0001318,2]
[353017934,1739487032672,-1258.03,0.00013184,2]
[353017935,1739487032682,-1258.03,0.00013187,2]
[353017936,1739487032691,-1258.03,0.00013191,2]
[353017937,1739487032701,-1258.03,0.00013194,2]
[353017938,1739487032710,-1258.03,0.00013198,2]
[353017939,1739487032719,-1258.03,0.00013201,2]
[353017940,1739487032728,-1258.03,0.00013205,2]
[353017941,1739487032737,-1258.03,0.00013208,2]
[353017942,1739487033092,-1258.03,0.00013211,2]
[353017943,1739487033103,-1258.03,0.00013215,2]
[353017944,1739487033113,-1258.03,0.00013218,2]
[353017945,1739487033124,-1258.03,0.00013222,2]
[353017946,1739487033135,-420.0,0.0001339,2]
[353017947,1739487033145,-166.66,0.00013517,2]
[353017948,1739487033154,-153.35,0.00013543,2]
[353017949,1739487033164,-2558.99642603,0.00013598,2]
[353017950,1739487033174,-2977.9587,0.00013671,2]
[353017951,1739487033183,-500.0,0.00013698,2]
[353017952,1739487033193,-500.0,0.00013698,2]
[353017953,1739487033202,-500.0,0.00013698,2]
[353017954,1739487033212,-432.19966971,0.00013698,2]
[353017955,1739487033222,-500.0,0.00013698,2]
[353017956,1739487033232,-516.65,0.00013698,2]
[353017957,1739487033242,-500.0,0.00013698,2]
[353017958,1739487033251,-500.0,0.00013698,2]
[353017959,1739487033261,-500.0,0.00013698,2]
[353017960,1739487033271,-932.35,0.00013698,2]
[353017961,1739487033280,-500.0,0.00013698,2]
[353017962,1739487033290,-500.0,0.00013698,2]
[353017963,1739487033300,-634.81,0.00013698,2]
[353017964,1739487033310,-500.0,0.00013698,2]
[353017965,1739487033320,-500.0,0.00013698,2]
[353017966,1739487033330,-500.0,0.00013698,2]
[353017967,1739487033340,-500.0,0.00013698,2]
[353017968,1739487033349,-500.0,0.00013698,2]
[353017969,1739487033359,-500.0,0.00013698,2]
[353017970,1739487033369,-500.0,0.00013698,2]
[353017971,1739487033381,-500.0,0.00013698,2]
[353017972,1739487033391,-500.0,0.00013698,2]
[353017973,1739487033401,-500.0,0.00013698,2]
[353017974,1739487033411,-500.0,0.00013698,2]
[353017975,1739487033423,-500.0,0.00013698,2]
[353017976,1739487033432,-500.0,0.00013698,2]
[353017977,1739487033442,-500.0,0.00013698,2]
[353017978,1739487033452,-968.56,0.00013698,2]
[353017979,1739487033463,-500.0,0.00013698,2]
[353017980,1739487033473,-500.0,0.00013698,2]
[353017981,1739487033483,-500.0,0.00013698,2]
[353017982,1739487033493,-500.0,0.00013698,2]
[353017983,1739487033503,-500.0,0.00013698,2]
[353017984,1739487033512,-500.0,0.00013698,2]
[353017985,1739487033522,-500.0,0.00013698,2]
[353017986,1739487033531,-500.0,0.00013698,2]
[353017987,1739487033541,-500.0,0.00013698,2]
[353017988,1739487033551,-564.9,0.00013698,2]
[353017989,1739487033560,-500.0,0.00013698,2]
[353017990,1739487033569,-500.0,0.00013698,2]
[353017991,1739487033579,-500.0,0.00013698,2]
[353017992,1739487033588,-525.3976657,0.00013698,2]
[353017993,1739487033598,-500.0,0.00013698,2]
[353017994,1739487033607,-500.0,0.00013698,2]
[353017995,1739487033617,-505.12193262,0.00013698,2]
[353017996,1739487033626,-500.0,0.00013698,2]
[353017997,1739487033636,-500.0,0.00013698,2]
[353017998,1739487033645,-500.0,0.00013698,2]
[353017999,1739487033655,-500.0,0.00013698,2]
[353018000,1739487033665,-500.0,0.00013698,2]
[353018001,1739487033674,-500.0,0.00013698,2]
[353018002,1739487033683,-500.0,0.00013698,2]
[353018003,1739487033693,-500.0,0.00013698,2]
[353018004,1739487033703,-500.0,0.00013698,2]
[353018005,1739487033713,-500.0,0.00013698,2]
[353018006,1739487033722,-500.0,0.00013698,2]
[353018007,1739487033731,-500.0,0.00013698,2]
[353018008,1739487033741,-500.0,0.00013698,2]
[353018009,1739487033751,-500.0,0.00013698,2]
[353018010,1739487033760,-330.86417201,0.00013698,2]
[353018011,1739487033770,-500.0,0.00013698,2]
[353018012,1739487033779,-500.0,0.00013698,2]
[353018013,1739487033789,-500.0,0.00013698,2]
[353018014,1739487033798,-500.0,0.00013698,2]
[353018015,1739487033807,-500.0,0.00013698,2]
[353018016,1739487033816,-500.0,0.00013698,2]
[353018017,1739487033826,-500.0,0.00013698,2]
[353018018,1739487033836,-500.0,0.00013698,2]
[353018019,1739487033850,-500.0,0.00013698,2]
[353018020,1739487033859,-849.63,0.00013698,2]
[353018021,1739487033869,-619.51,0.00013698,2]
[353018022,1739487033879,-500.0,0.00013698,2]
[353018023,1739487033889,-500.0,0.00013698,2]
[353018024,1739487033899,-500.0,0.00013698,2]
[353018025,1739487033909,-558.28466985,0.00013698,2]
[353018026,1739487033919,-500.01368344,0.00013698,2]
[353018027,1739487033930,-500.0,0.00013698,2]
[353018028,1739487033940,-340.84518084,0.00013698,2]
[353018029,1739487033950,-500.0,0.00013698,2]
[353018030,1739487033960,-200.0,0.00013699,2]
[353018031,1739487033971,-500.0,0.00013699,2]
[353018032,1739487033981,-201.45,0.00013699,2]
[353018033,1739487033991,-8912.33,0.00013699,2]
[353018034,1739487034002,-500.0,0.0001378,2]
[353018035,1739487034012,-516.65,0.0001378,2]
[353018036,1739487034022,-274.88448693,0.0001378,2]
[353018037,1739487034032,-500.0,0.0001378,2]
[353018038,1739487034042,-932.35,0.0001378,2]
[353018039,1739487034053,-500.0,0.0001378,2]
[353018040,1739487034063,-634.81,0.0001378,2]
[353018041,1739487034073,-500.0,0.0001378,2]
[353018042,1739487034084,-500.0,0.0001378,2]
[353018043,1739487034094,-500.0,0.0001378,2]
[353018044,1739487034104,-210.1012625,0.0001378,2]
[353018045,1739487034114,-968.56,0.0001378,2]
[353018046,1739487034125,-500.0,0.0001378,2]
[353018047,1739487034135,-500.0,0.0001378,2]
[353018048,1739487034144,-500.0,0.0001378,2]